bitfinex/quotes_ETHUSD_20250616
["timestamp","ask_amount","ask_price","bid_price","bid_amount"]
[1750032272905,0.0213579,2552.0,2550.9,0.7912]
[1750032272906,30.0,2551.9,2550.9,0.7912]
[1750032273063,30.0,2551.9,2550.8,0.4711774]
[1750032273064,10.0,2551.8,2551.1,0.7912]
[1750032273258,30.0,2551.8,2551.1,0.7912]
[1750032273460,2.07049885,2551.9,2551.2,0.03919083]
[1750032273786,12.07049885,2551.9,2551.3,0.7912]
[1750032274173,30.0,2551.8,2551.3,0.7912]
[1750032276420,0.1952,2551.5,2551.3,0.7912]
[1750032279315,20.39549885,2551.9,2551.3,0.7912]
[1750032279515,0.1952,2551.7,2551.3,0.9864]
[1750032285225,0.12265892,2551.6,2551.3,0.9864]
[1750032285411,0.12265917,2551.5,2551.3,0.9864]
[1750032285625,0.1952,2551.7,2551.3,0.9864]
[1750032286529,0.59069885,2551.9,2551.5,0.8062]
[1750032286905,0.12265241,2551.8,2551.5,0.8062]
[1750032287101,0.59069885,2551.9,2551.5,0.8062]
[1750032288196,0.12265224,2551.8,2551.5,0.8062]
[1750032288417,0.1952,2551.9,2551.5,0.8062]
[1750032288929,0.0213579,2552.0,2551.5,0.8062]
[1750032289135,0.0213579,2552.0,2551.8,0.7935]
[1750032289629,0.12264376,2551.9,2551.8,0.7935]
[1750032289834,0.0213579,2552.0,2551.8,0.7935]
[1750032292848,0.12264499,2551.9,2551.8,0.7935]
[1750032293153,0.0213579,2552.0,2551.8,0.7935]
[1750032294120,0.12264484,2551.9,2551.8,0.7935]
[1750032294463,0.0213579,2552.0,2551.8,0.7935]
[1750032294847,0.12264484,2551.9,2551.8,0.7935]
[1750032295024,0.0213579,2552.0,2551.8,0.7935]
[1750032300661,0.0213579,2552.0,2551.8,0.83268522]
[1750032300976,0.0213579,2552.0,2551.9,0.1952]
[1750032301835,0.0213579,2552.0,2551.9,0.9519]
[1750032303058,0.14397225,2552.0,2551.9,0.9519]
[1750032303217,0.0213579,2552.0,2551.9,1.4820648]
[1750032304939,0.0213579,2552.0,2551.9,1.44288588]
[1750032306479,0.0213579,2552.0,2551.9,0.9519]
[1750032306783,0.0213579,2552.0,2551.7,0.7981]
[1750032306926,0.0213579,2552.0,2551.7,0.1952]
[1750032307128,0.1952,2551.8,2551.5,1.669]
[1750032308134,0.12264488,2551.7,2551.5,1.669]
[1750032308385,0.1952,2551.8,2551.5,1.93516921]
[1750032308662,0.1226452,2551.7,2551.5,2.13036921]
[1750032308873,0.2165579,2552.0,2551.5,2.13036921]
[1750032311177,0.12264896,2551.9,2551.5,2.13036921]
[1750032311358,0.2165579,2552.0,2551.5,2.13036921]
[1750032311977,30.0,2551.9,2551.5,1.669]
[1750032312164,0.1952,2551.9,2551.4,0.1952]
[1750032312363,0.12265423,2551.8,2551.4,0.1952]
[1750032312666,0.1952,2551.9,2551.4,0.1952]
[1750032312972,0.1952,2551.9,2551.4,0.93235]
[1750032313384,0.0213579,2552.0,2551.6,0.7886]
[1750032313594,0.2165579,2552.0,2551.6,0.7886]
[1750032314745,0.12264337,2551.9,2551.6,0.7886]
[1750032315056,0.12264882,2551.8,2551.5,0.1952]
[1750032315382,0.1952,2551.7,2551.4,0.773]
[1750032316084,0.1952,2551.9,2551.4,0.9682]
[1750032317455,0.1952,2551.9,2551.4,1.23182]
[1750032319270,0.12265247,2551.8,2551.4,0.9682]
[1750032319508,0.1952,2551.9,2551.4,0.9682]
[1750032322591,0.12265221,2551.8,2551.4,0.9682]
[1750032322768,0.1952,2551.9,2551.4,0.9682]
[1750032323683,0.12265132,2551.8,2551.4,0.9682]
[1750032323883,0.1952,2551.9,2551.4,0.9682]
[1750032324565,0.12264935,2551.8,2551.4,0.9682]
[1750032324762,0.1952,2551.9,2551.4,0.9682]
[1750032325074,0.1226512,2551.8,2551.4,0.9682]
[1750032325264,0.1952,2551.9,2551.4,0.9682]
[1750032325865,30.0,2551.8,2551.4,0.9682]
[1750032326092,0.88988495,2551.7,2551.4,0.9682]
[1750032326397,0.1952,2551.9,2551.4,0.9682]
[1750032326398,30.0,2551.8,2551.4,0.9682]
[1750032326612,0.88988495,2551.7,2551.4,0.9682]
[1750032326764,0.1226555,2551.6,2551.4,0.9682]
[1750032327096,30.0,2551.8,2551.4,0.9682]
[1750032327296,1.01254047,2551.7,2551.4,0.9682]
[1750032327502,0.12265552,2551.7,2551.4,0.9682]
[1750032327885,30.0,2551.8,2551.4,0.9682]
[1750032328085,0.12265252,2551.7,2551.4,0.9682]
[1750032328315,0.122653,2551.6,2551.4,0.9682]
[1750032328722,0.1952,2551.9,2551.4,0.9682]
[1750032329232,30.1226548,2551.8,2551.4,0.9682]
[1750032329526,0.1952,2551.9,2551.4,0.9682]
[1750032331081,0.12265061,2551.8,2551.4,0.9682]
[1750032331282,0.1952,2551.9,2551.4,0.9682]
[1750032332330,0.2632,2551.9,2551.4,0.90020146]
[1750032332487,0.12265509,2551.8,2551.4,0.90020146]
[1750032332685,0.2632,2551.9,2551.4,0.90020146]
[1750032333816,0.1226503,2551.8,2551.4,0.90020146]
[1750032333997,0.1952,2551.9,2551.4,0.90020146]
[1750032334901,0.1952,2551.9,2551.4,1.63202161]
[1750032335287,0.12264478,2551.8,2551.4,1.63202161]
[1750032335519,0.1952,2551.9,2551.4,1.63202161]
[1750032335716,1.08647071,2551.9,2551.4,1.63202161]
[1750032335925,0.1226449,2551.8,2551.4,1.63202161]
[1750032336241,1.08647071,2551.9,2551.4,1.63202161]
[1750032336439,0.89127071,2551.8,2551.4,1.63202161]
[1750032336743,0.89127071,2551.8,2551.4,0.90020146]
[1750032336918,0.12264829,2551.7,2551.4,0.90020146]
[1750032337239,0.89127071,2551.7,2551.4,0.90020146]
[1750032337435,0.12265056,2551.6,2551.4,0.90020146]
[1750032337601,0.89127071,2551.7,2551.4,0.90020146]
[1750032337801,0.12265152,2551.6,2551.4,0.90020146]
[1750032338017,0.89127071,2551.7,2551.4,0.90020146]
[1750032338223,0.12265172,2551.6,2551.4,0.90020146]
[1750032338550,0.89127071,2551.7,2551.4,0.90020146]
[1750032338750,0.89127071,2551.8,2551.4,0.90020146]
[1750032339043,0.89127071,2551.7,2551.4,0.90020146]
[1750032339214,0.12265185,2551.6,2551.4,0.90020146]
[1750032339564,0.89127071,2551.7,2551.4,0.90020146]
[1750032339737,0.89127071,2551.8,2551.4,0.90020146]
[1750032339953,0.89127071,2551.7,2551.4,0.90020146]
[1750032340257,0.89127071,2551.8,2551.4,0.90020146]
[1750032340400,1.01392235,2551.7,2551.4,0.90020146]
[1750032340600,0.89127071,2551.8,2551.4,0.90020146]
[1750032340839,0.89127071,2551.7,2551.4,0.90020146]
[1750032341021,0.12265145,2551.6,2551.4,0.90020146]
[1750032341208,0.12265146,2551.5,2551.4,0.90020146]
[1750032341407,0.89303207,2551.8,2551.4,0.90020146]
[1750032341652,0.89303207,2551.7,2551.4,0.90020146]
[1750032341852,0.89303207,2551.8,2551.4,0.90020146]
[1750032342027,0.89303207,2551.7,2551.4,0.90020146]
[1750032342229,0.89303207,2551.8,2551.4,0.90020146]
[1750032342429,1.01568596,2551.7,2551.4,0.90020146]
[1750032342750,0.89303207,2551.8,2551.4,0.90020146]
[1750032342949,0.89303207,2551.7,2551.4,0.90020146]
[1750032343113,0.89303207,2551.8,2551.4,0.90020146]
[1750032343309,0.89303207,2551.7,2551.4,0.90020146]
[1750032343547,0.89303207,2551.8,2551.4,0.90020146]
[1750032343713,1.01568542,2551.7,2551.4,0.90020146]
[1750032343915,1.01568755,2551.6,2551.2,0.8206]
[1750032344129,0.1952,2551.6,2551.2,0.8206]
[1750032344451,0.1226601,2551.5,2551.2,0.8206]
[1750032345052,1.01569217,2551.5,2551.2,0.8206]
[1750032347828,0.1226601,2551.5,2551.2,0.8206]
[1750032348758,0.1226601,2551.5,2551.4,0.9925]
[1750032349130,0.1226601,2551.5,2551.4,6.6190995]
[1750032349329,0.0213579,2552.0,2551.6,3.91908225]
[1750032349537,0.0213579,2552.0,2551.8,0.7973]
[1750032350146,0.0213579,2552.0,2551.9,0.1952]
[1750032350871,0.0213579,2552.0,2551.9,1.0038]
[1750032351387,0.0213579,2552.0,2551.6,6.417]
[1750032351674,0.0213579,2552.0,2551.7,1.0052]
[1750032355175,0.0213579,2552.0,2551.7,1.75133864]
[1750032355473,0.0213579,2552.0,2551.7,1.0052]
[1750032362260,0.0213579,2552.0,2551.8,0.03918339]
[1750032362640,0.0213579,2552.0,2551.9,0.1952]
[1750032368248,0.0213579,2552.0,2551.6,6.6102]
[1750032368585,0.0213579,2552.0,2551.6,6.64938709]
[1750032369555,0.0213579,2552.0,2551.6,0.23438709]
[1750032369886,0.0213579,2552.0,2551.6,0.1952]
[1750032371253,0.0213579,2552.0,2551.6,0.23438709]
[1750032371878,0.0213579,2552.0,2551.6,0.7856358]
[1750032372111,0.0213579,2552.0,2551.8,0.1952]
[1750032372498,0.0213579,2552.0,2551.9,0.03918187]
[1750032372672,0.0213579,2552.0,2551.8,0.1952]
[1750032376106,0.0213579,2552.0,2551.9,0.0391808]
[1750032376257,0.0213579,2552.0,2551.9,0.7631]
[1750032376453,0.0213579,2552.0,2551.8,0.1952]
[1750032377298,0.0213579,2552.0,2551.8,1.17377487]
[1750032377494,0.0213579,2552.0,2551.9,0.03918248]
[1750032377684,0.0213579,2552.0,2551.9,0.85298248]
[1750032379300,0.0213579,2552.0,2551.8,1.17377487]
[1750032380160,0.0213579,2552.0,2551.4,0.8237]
[1750032380382,0.91301662,2552.0,2551.4,0.8237]
[1750032380611,0.91301662,2552.0,2551.5,6.6092]
[1750032380612,1.08685872,2551.9,2551.5,6.6092]
[1750032380974,0.1952,2551.9,2551.5,6.6092]
[1750032382312,0.0213579,2552.0,2551.5,6.414]
[1750032382518,0.91345971,2552.0,2551.7,0.1952]
[1750032382657,0.0213579,2552.0,2551.7,0.1952]
[1750032382857,0.91345971,2552.0,2551.7,0.1952]
[1750032383075,0.0213579,2552.0,2551.7,0.1952]
[1750032383281,0.91345971,2552.0,2551.7,0.1952]
[1750032383487,0.0213579,2552.0,2551.7,0.1952]
[1750032383705,0.91345971,2552.0,2551.7,0.1952]
[1750032383885,0.1907,2551.8,2550.8,0.4711774]
[1750032384088,1.08730181,2551.7,2551.3,0.1952]
[1750032384287,1.08730181,2551.7,2551.0,0.771]
[1750032384288,0.1952,2551.5,2551.0,0.9662]
[1750032384661,1.08280181,2551.4,2551.0,0.1952]
[1750032384795,31.08730181,2551.3,2550.8,0.196]
[1750032384968,30.0,2551.0,2550.3,0.8014]
[1750032385170,0.88881221,2550.9,2550.6,0.196]
[1750032385496,30.0,2551.0,2550.6,0.196]
[1750032385698,1.08481221,2550.9,2550.4,0.196]
[1750032386014,1.08481221,2550.9,2550.4,0.23520526]
[1750032386015,0.196,2550.9,2550.4,0.23520526]
[1750032386866,0.59356047,2550.9,2550.4,0.23520526]
[1750032387213,0.196,2550.9,2550.4,0.23520526]
[1750032387422,0.196,2550.9,2550.4,0.94106053]
[1750032387584,0.1907,2550.8,2550.4,0.196]
[1750032389283,0.196,2550.9,2550.4,0.196]
[1750032390514,0.1907,2550.8,2550.4,0.196]
[1750032391069,10.1907,2550.8,2550.4,0.196]
[1750032391618,10.1907,2550.8,2550.1,0.7897]
[1750032392415,10.1907,2550.8,2550.1,1.67687]
[1750032393072,40.0,2550.7,2549.9,0.7679]
[1750032393408,0.1907,2550.8,2549.9,0.7679]
[1750032393611,10.0,2550.6,2549.9,0.7679]
[1750032393776,30.0,2550.7,2549.9,0.7679]
[1750032393972,10.0,2550.6,2549.9,0.7679]
[1750032394211,10.0,2550.6,2549.9,1.48629]
[1750032394953,0.1907,2550.8,2550.1,0.7679]
[1750032395237,0.39681479,2550.9,2550.2,0.0392075]
[1750032395533,1.667,2551.0,2550.4,0.7679]
[1750032395732,0.88421968,2551.4,2550.2,0.0392075]
[1750032395733,30.0,2551.4,2550.6,0.7679]
[1750032395892,10.0,2551.4,2550.7,0.0392004]
[1750032396648,10.0,2551.4,2550.7,0.03920049]
[1750032396841,10.0,2551.4,2550.6,0.7679]
[1750032396842,30.0,2551.3,2550.6,0.7679]
[1750032397634,30.40105534,2551.3,2550.6,0.7679]
[1750032397813,30.0,2551.2,2550.6,0.7679]
[1750032398137,30.0,2551.3,2550.6,0.7679]
[1750032399011,30.0,2551.3,2550.6,1.49021019]
[1750032399212,10.0,2551.4,2550.6,1.49021019]
[1750032399408,30.0,2551.3,2550.6,0.7679]
[1750032399740,30.39070964,2551.3,2550.6,0.7679]
[1750032399914,30.0,2551.2,2550.6,0.7679]
[1750032400115,10.0,2551.1,2550.6,0.7679]
[1750032400336,10.1907,2551.1,2550.6,0.7679]
[1750032401257,10.1907,2551.1,2550.3,0.7537]
[1750032401458,0.196,2550.8,2550.3,0.9497]
[1750032401959,30.0,2550.7,2550.3,0.9497]
[1750032403958,30.0,2550.7,2550.3,0.7537]
[1750032404157,0.196,2550.5,2550.3,0.7537]
[1750032411881,0.39341854,2550.8,2550.3,0.7537]
[1750032412094,10.0,2551.0,2550.6,0.196]
[1750032412292,0.196,2551.1,2550.6,0.196]
[1750032413393,1.08205602,2551.1,2550.6,0.196]
[1750032413699,0.196,2551.1,2550.6,0.196]
[1750032413866,1.08205602,2551.1,2550.6,0.196]
[1750032414066,0.88605602,2551.0,2550.6,0.196]
[1750032414762,0.88605602,2550.9,2550.6,0.196]
[1750032415107,0.88605602,2551.0,2550.6,0.196]
[1750032415288,30.0,2550.8,2550.1,1.666]
[1750032415487,1.08205602,2550.7,2550.2,1.91445889]
[1750032415691,0.196,2550.7,2550.3,0.7883]
[1750032421626,0.88605602,2550.9,2550.4,0.03920701]
[1750032421824,1.08205602,2550.9,2550.4,0.23520701]
[1750032422737,0.196,2550.9,2550.5,0.7785]
[1750032425449,1.08205602,2550.9,2550.5,0.7785]
[1750032427328,0.88605602,2550.9,2550.6,0.03920394]
[1750032427528,1.08125602,2551.1,2550.7,0.196]
[1750032427730,0.88605602,2551.3,2550.8,0.8256]
[1750032427936,0.88605602,2551.5,2551.0,0.1952]
[1750032428432,1.27195602,2551.6,2551.0,0.1952]
[1750032428633,0.3859,2551.6,2551.0,0.1952]
[1750032428853,1.27195602,2551.6,2551.0,0.1952]
[1750032429137,0.88605602,2551.5,2551.0,0.1952]
[1750032429341,1.27195602,2551.6,2551.0,0.1952]
[1750032429794,0.3859,2551.6,2551.0,0.1952]
[1750032429992,1.27195602,2551.6,2551.0,0.1952]
[1750032430301,0.3859,2551.6,2551.0,0.1952]
[1750032430502,1.27195602,2551.6,2551.0,0.1952]
[1750032431222,1.67152884,2551.6,2551.0,0.1952]
[1750032431429,0.78547282,2551.6,2551.0,0.1952]
[1750032431653,10.0,2551.8,2551.2,0.7964]
[1750032431800,10.0,2551.8,2551.5,0.1952]
[1750032431801,0.88605602,2551.8,2551.5,0.1952]
[1750032431995,0.2165579,2552.0,2551.6,0.8043]
[1750032432836,40.1907,2551.9,2551.5,0.1952]
[1750032433038,0.1952,2551.6,2551.1,0.9995]
[1750032434829,0.8879281,2551.9,2551.1,0.8043]
[1750032435045,0.1952,2551.8,2551.4,0.8043]
[1750032438606,0.909286,2552.0,2551.5,0.03919208]
[1750032438808,0.2165579,2552.0,2551.5,0.1952]
[1750032439149,30.0,2551.7,2551.1,2.4895]
[1750032439456,30.0,2551.7,2551.2,0.1952]
[1750032439457,0.1952,2551.7,2551.2,0.1952]
[1750032439610,0.1952,2551.7,2551.2,0.23439317]
[1750032439812,0.1952,2551.7,2551.2,0.1952]
[1750032443774,0.0213579,2552.0,2551.3,0.8062]
[1750032443921,0.0213579,2552.0,2551.6,0.1952]
[1750032444280,0.0213579,2552.0,2551.3,0.8062]
[1750032444556,0.0213579,2552.0,2551.5,0.1952]
[1750032444557,0.2165579,2552.0,2551.5,0.1952]
[1750032445749,10.4072579,2552.0,2551.5,0.1952]
[1750032445948,0.4072579,2552.0,2551.5,0.1952]
[1750032446150,30.0,2551.9,2551.3,0.8062]
[1750032446354,0.1952,2551.7,2551.3,1.0014]
[1750032447160,0.1952,2551.7,2551.3,1.27195928]
[1750032448032,0.1952,2551.7,2551.3,0.46575928]
[1750032448216,0.1952,2551.7,2551.3,0.1952]
[1750032449946,0.1952,2551.7,2551.4,0.7516]
[1750032452277,0.1952,2551.7,2551.3,0.1952]
[1750032452278,30.0,2551.6,2551.3,0.1952]
[1750032452578,0.88596313,2551.5,2551.4,0.826]
[1750032452732,0.0213579,2552.0,2551.4,0.8651944]
[1750032452932,0.0213579,2552.0,2551.4,0.826]
[1750032455040,0.0213579,2552.0,2551.5,0.2491]
[1750032455776,0.0213579,2552.0,2551.4,0.826]
[1750032457886,0.0213579,2552.0,2551.4,4.74540452]
[1750032458093,0.0213579,2552.0,2551.5,0.7686]
[1750032459556,0.0213579,2552.0,2551.6,0.03918432]
[1750032459771,0.0213579,2552.0,2551.7,0.7686]
[1750032460184,0.0213579,2552.0,2551.8,0.03918417]
[1750032460386,0.0213579,2552.0,2551.9,0.7686]
[1750032463383,0.0213579,2552.0,2551.7,0.7657]
[1750032467588,0.0213579,2552.0,2551.6,0.1952]
[1750032468777,0.0213579,2552.0,2551.6,0.2343868]
[1750032468976,0.0213579,2552.0,2551.7,0.7971]
[1750032469177,0.0213579,2552.0,2551.8,0.03918523]
[1750032469410,0.0213579,2552.0,2551.9,0.1952]
[1750032469604,0.0213579,2552.0,2551.9,0.9941]
[1750032470677,5.4810727,2554.0,2552.3,10.0]
[1750032470946,0.1907,2554.3,2552.6,0.784]
[1750032471218,0.1907,2553.8,2552.8,0.784]
[1750032471401,10.0,2553.6,2552.8,0.784]
[1750032471601,20.0,2553.9,2552.5,0.784]
[1750032471602,10.0,2553.2,2552.5,0.784]
[1750032471914,0.1907,2553.1,2552.5,0.784]
[1750032475729,0.1907,2553.1,2552.6,0.36621031]
[1750032476025,0.1907,2553.1,2552.5,0.784]
[1750032476832,0.1907,2553.1,2552.6,0.36620127]
[1750032477131,0.1907,2553.1,2552.7,0.36618778]
[1750032477283,0.1907,2553.1,2552.5,0.784]
[1750032477703,0.1907,2553.1,2552.6,0.36619484]
[1750032477904,0.1907,2553.1,2552.5,0.784]
[1750032478985,0.1907,2553.1,2552.6,0.36616395]
[1750032479297,0.1907,2553.1,2552.5,0.784]
[1750032479888,0.1907,2553.1,2552.6,0.36619337]
[1750032480213,0.1907,2553.1,2552.5,0.784]
[1750032480412,30.0,2552.8,2552.6,0.36622074]
[1750032480589,30.0,2552.6,2551.9,0.8304]
[1750032480788,0.1907,2552.5,2552.0,0.36647332]
[1750032481109,0.1907,2552.5,2551.7,0.8304]
[1750032481110,0.1952,2552.2,2552.1,0.36650433]
[1750032481296,0.1952,2552.2,2551.8,0.1952]
[1750032481701,0.1952,2552.2,2551.9,0.36648012]
[1750032481943,0.1952,2552.2,2552.0,0.36648899]
[1750032482119,0.1952,2552.2,2552.1,0.36648962]
[1750032482288,0.1952,2552.2,2552.1,0.36649333]
[1750032482488,0.1952,2552.2,2551.8,0.1952]
[1750032483612,0.1952,2552.2,2551.4,2.4746]
[1750032483613,30.0,2552.2,2551.4,2.4746]
[1750032483817,0.1952,2551.9,2551.4,2.6698]
[1750032484192,0.1952,2551.9,2551.4,1.0058]
[1750032484409,0.1952,2551.9,2551.5,0.36659917]
[1750032484736,0.1952,2551.9,2551.4,1.0058]
[1750032485431,0.1952,2551.9,2551.5,0.36660315]
[1750032485627,0.1952,2551.9,2551.6,0.36659214]
[1750032485932,0.1952,2551.9,2551.4,1.0058]
[1750032486137,0.1952,2551.9,2551.4,1.27669907]
[1750032492172,40.1907,2552.6,2551.7,0.7605]
[1750032492374,0.1952,2552.4,2551.8,0.1952]
[1750032493548,10.1907,2552.6,2551.7,0.7605]
[1750032493851,10.3859,2552.6,2552.1,0.1952]
[1750032494544,30.0,2552.5,2552.1,0.1952]
[1750032494744,30.0,2552.5,2551.7,0.7605]
[1750032494940,30.0,2551.8,2550.9,7.46680673]
[1750032495275,30.0,2551.8,2549.9,3.89471539]
[1750032495276,10.1907,2551.5,2550.6,2.4715]
[1750032495483,30.0,2551.2,2550.6,0.8075]
[1750032495774,30.0,2551.2,2550.3,0.8075]
[1750032495979,30.0,2551.2,2550.4,0.89735]
[1750032496880,0.1907,2551.1,2550.4,0.89735]
[1750032497084,0.1907,2551.1,2550.3,0.8075]
[1750032497745,30.0,2551.0,2550.3,0.8075]
[1750032499879,0.1907,2551.1,2550.3,0.84670564]
[1750032500355,0.57844604,2551.1,2550.3,0.8075]
[1750032500557,0.1907,2551.1,2550.3,0.8075]
[1750032502242,0.1907,2551.1,2550.4,0.25055]
[1750032504585,30.0,2551.0,2550.4,0.25055]
[1750032505093,0.196,2550.9,2550.4,0.44655]
[1750032505392,0.196,2550.7,2550.3,0.8075]
[1750032505759,30.1907,2550.6,2550.1,0.772]
[1750032505959,0.196,2550.4,2550.0,0.196]
[1750032507287,0.196,2550.2,2549.7,0.196]
[1750032507445,0.196,2550.2,2549.7,0.46759]
[1750032509351,0.196,2550.2,2549.7,0.50680724]
[1750032509567,0.196,2550.2,2549.7,0.46759]
[1750032512305,0.196,2550.3,2549.8,0.196]
[1750032512652,0.196,2550.3,2549.9,0.80031523]
[1750032512855,0.196,2550.7,2550.2,0.196]
[1750032515608,0.196,2550.7,2550.3,0.7611]
[1750032516907,0.196,2550.7,2549.7,0.27159]
[1750032516908,30.0,2550.7,2550.0,0.7611]
[1750032517057,0.196,2550.4,2550.0,0.9571]
[1750032519221,0.196,2550.6,2550.1,0.196]
[1750032520611,10.196,2550.6,2550.1,0.196]
[1750032520912,0.196,2550.4,2550.0,0.9571]
[1750032522964,0.1907,2551.2,2550.1,4.73809843]
[1750032523208,0.1907,2551.5,2550.3,0.7775]
[1750032523392,30.0,2551.5,2550.6,0.8288]
[1750032523706,0.83591381,2551.4,2550.8,0.8288]
[1750032523878,10.83591381,2551.5,2550.8,0.8288]
[1750032524206,0.83591381,2551.5,2550.8,0.8288]
[1750032524396,10.0,2551.5,2550.8,0.8288]
[1750032524571,10.83591381,2551.5,2550.8,0.8288]
[1750032527110,10.38411869,2552.0,2550.9,0.7839]
[1750032527262,10.0,2551.9,2551.1,0.7961]
[1750032527466,10.0,2551.9,2551.2,0.03919099]
[1750032527820,0.83354032,2551.9,2551.1,0.7961]
[1750032528108,10.1907,2552.1,2551.1,0.7961]
[1750032528109,1.02424032,2552.1,2551.1,0.7961]
[1750032528290,0.1907,2552.1,2551.1,0.7961]
[1750032528499,10.0,2551.9,2551.1,0.7961]
[1750032528698,10.83354032,2551.9,2551.1,0.7961]
[1750032528904,0.83354032,2551.9,2551.1,0.7961]
[1750032529111,10.1907,2552.1,2551.1,0.7961]
[1750032529296,10.0,2551.9,2551.1,0.7961]
[1750032529491,30.38474672,2552.0,2551.1,0.7961]
[1750032529697,0.83354032,2551.9,2551.1,0.7961]
[1750032530016,10.0,2551.9,2551.3,0.7961]
[1750032530402,0.1907,2552.1,2551.3,0.7961]
[1750032530578,10.1907,2552.1,2551.3,0.7961]
[1750032530918,40.0,2552.0,2551.3,0.7961]
[1750032531118,0.1907,2552.1,2551.3,0.7961]
[1750032531290,10.1907,2552.1,2551.3,0.7961]
[1750032531497,10.0,2551.9,2551.3,0.7961]
[1750032531893,0.1907,2552.1,2551.3,0.7961]
[1750032532098,10.1907,2552.1,2551.3,0.7961]
[1750032532427,30.0,2552.0,2551.3,0.7961]
[1750032532732,10.0,2551.9,2551.3,0.7961]
[1750032533024,10.1952,2551.9,2551.4,0.1952]
[1750032533388,30.0,2551.8,2551.1,0.8309]
[1750032533583,0.1952,2551.5,2551.1,0.8309]
[1750032534321,10.1952,2551.5,2551.1,0.8309]
[1750032535722,30.0,2551.4,2551.0,0.1952]
[1750032535897,30.0,2551.4,2550.9,2.5129]
[1750032536106,0.1952,2551.2,2550.9,2.5129]
[1750032536282,0.1952,2551.2,2550.9,1.10179]
[1750032536488,0.1952,2551.2,2550.9,0.8309]
[1750032544308,0.3859,2551.2,2550.7,0.196]
[1750032544537,0.55,2550.3,2549.4,0.7542]
[1750032544718,40.0,2550.0,2549.4,0.7542]
[1750032544917,0.55,2550.1,2549.4,0.7542]
[1750032544918,0.196,2549.6,2549.4,0.7542]
[1750032545397,0.196,2549.6,2549.2,0.7542]
[1750032546406,0.39014526,2549.6,2549.2,0.7542]
[1750032546618,30.0,2549.7,2549.2,0.7542]
[1750032547208,30.0,2550.0,2549.2,0.99782]
[1750032547444,10.0,2549.7,2549.2,0.99782]
[1750032547608,40.0,2550.0,2549.2,0.99782]
[1750032547807,10.0,2549.7,2549.2,0.7542]
[1750032548011,0.7407,2550.1,2549.2,0.7542]
[1750032548209,30.0,2550.0,2549.2,0.7542]
[1750032548409,10.0,2549.7,2549.2,0.7542]
[1750032548713,0.39509225,2549.7,2549.2,0.7542]
[1750032549073,40.0,2550.0,2549.2,0.7542]
[1750032549214,30.0,2550.0,2549.2,0.7542]
[1750032549415,36.505,2550.0,2549.2,0.7542]
[1750032549615,30.0,2549.7,2549.2,0.7542]
[1750032550017,10.0,2549.8,2549.2,0.7542]
[1750032550554,10.0,2549.9,2549.2,0.7542]
[1750032550713,10.0,2549.7,2549.2,0.7542]
[1750032550917,10.3857562,2549.7,2549.2,0.7542]
[1750032555465,0.196,2549.6,2549.2,0.7542]
[1750032555619,0.196,2549.6,2549.2,1.01742]
[1750032561980,0.196,2549.6,2549.2,0.7542]
[1750032563494,30.0,2549.5,2549.2,0.7542]
[1750032563638,0.196,2549.4,2549.2,0.7542]
[1750032572484,0.196,2549.4,2549.0,0.196]
[1750032572485,0.3867,2549.4,2549.0,0.196]
[1750032572825,0.3867,2549.4,2547.7,11.305]
[1750032572826,10.0,2548.9,2548.4,0.7844]
[1750032572949,30.0,2548.8,2548.2,0.196]
[1750032573292,0.196,2548.6,2548.1,0.196]
[1750032573586,0.196,2548.3,2547.8,0.8243]
[1750032573796,0.196,2548.3,2547.8,1.0203]
[1750032573965,0.196,2548.3,2547.8,2.42373]
[1750032575560,0.196,2548.3,2547.8,2.46297612]
[1750032576481,0.59439822,2548.3,2547.8,2.46297612]
[1750032576680,0.196,2548.3,2547.8,2.46297612]
[1750032577907,0.1907,2548.7,2547.8,2.46297612]
[1750032577908,10.0,2548.7,2547.9,0.8018]
[1750032578107,0.196,2548.7,2548.3,0.8018]
[1750032581122,12.60908091,2549.0,2547.9,8.184]
[1750032581423,0.196,2548.6,2548.1,1.0071]
[1750032581803,0.3867,2548.6,2548.1,1.0071]
[1750032582623,10.0,2548.4,2547.5,8.16004869]
[1750032582937,30.0,2548.2,2547.5,0.7878]
[1750032584006,0.1907,2548.3,2547.5,0.7878]
[1750032584418,30.0,2548.2,2547.5,0.7878]
[1750032585838,40.0,2547.8,2547.3,0.8]
[1750032586048,30.0,2547.8,2547.3,0.8]
[1750032586219,0.1907,2547.9,2547.0,0.8]
[1750032586547,30.0,2547.8,2547.0,0.8]
[1750032588740,30.0,2547.7,2547.0,0.8]
[1750032590461,6.469,2547.8,2547.0,0.8]
[1750032590834,8.165,2547.9,2547.1,0.83445546]
[1750032591410,10.0,2547.9,2547.2,0.832]
[1750032591742,10.0,2547.9,2547.4,0.832]
[1750032591929,0.89518866,2548.1,2547.4,0.832]
[1750032592120,1.696,2548.2,2547.5,0.87125173]
[1750032592323,0.89518866,2548.6,2547.6,11.22826299]
[1750032592562,0.196,2548.7,2548.1,0.196]
[1750032592763,0.196,2548.7,2548.2,0.832]
[1750032594048,30.0,2548.8,2548.2,0.832]
[1750032594357,0.196,2548.5,2548.2,0.832]
[1750032598464,0.196,2548.5,2548.0,0.994]
[1750032603487,0.196,2548.8,2548.3,0.196]
[1750032605864,0.196,2548.8,2548.4,0.7851]
[1750032606068,10.89757909,2549.1,2548.4,0.8243386]
[1750032606230,0.196,2549.0,2548.6,0.196]
[1750032607963,0.196,2549.0,2548.7,0.8075]
[1750032610563,0.39273309,2549.2,2548.3,1.696]
[1750032610564,0.1907,2549.1,2548.5,0.8075]
[1750032610765,30.0,2549.0,2548.3,2.5035]